[Event "Fagernes GM-A 2019"]
[Site "Fagernes"]
[Date "2019.04.18"]
[Round "6.3"]
[White "Vovk, Andriy"]
[Black "Galinsky, Timofey"]
[Result "1-0"]
[ECO "C10"]
[WhiteElo "2616"]
[BlackElo "2378"]
[Annotator "ChessBase"]
[PlyCount "131"]
[EventDate "2019.04.14"]
[EventType "tourn"]
[EventCountry "NOR"]
[SourceTitle "playchess.com"]
[Source "ChessBase"]
[SourceQuality "1"]
[TimeControl "40/7200:3600"]

1. e4 {[%emt 0:02:08]} e6 {[%emt 0:00:06]} 2. d4 {[%emt 0:00:08]} d5 {[%emt 0:00:12]} 3. Nd2 {[%emt 0:00:14]} dxe4 {[%emt 0:00:16]} 4. Nxe4 {[%emt 0:00:06]} Bd7 {[%emt 0:00:21]} 5. Nf3 {[%emt 0:00:54]} Bc6 {[%emt 0:00:13]} 6. Bd3 {[%emt 0:00:37]} Nd7 {[%emt 0:00:32]} 7. O-O {[%emt 0:00:42]} Ngf6 {[%emt 0:00:18]} 8. Ned2 {[%emt 0:04:27]} Be7 {[%emt 0:01:16]} 9. Re1 {[%emt 0:01:41]} O-O {[%emt 0:03:12]} 10. Nc4 {[%emt 0:01:38]} b6 {[%emt 0:03:19]} 11. Qe2 {[%emt 0:09:31]} Bb7 {[%emt 0:04:56]} 12. Nce5 {[%emt 0:03:56]} c5 {[%emt 0:04:28]} 13. Ng5 {[%emt 0:14:49]} Qe8 {[%emt 0:24:42]} 14. Bc4 {[%emt 0:16:36]} Nxe5 {[%emt 0:02:22]} 15. dxe5 {[%emt 0:00:28]} Qc6 {[%emt 0:00:28]} 16. f4 {[%emt 0:10:08]} Nd5 {[%emt 0:02:37]} 17. Ne4 {[%emt 0:07:07]} a6 {[%emt 0:02:15]} 18. a4 {[%emt 0:00:55]} Rfd8 {[%emt 0:03:12]} 19. c3 {[%emt 0:03:29]} Bh4 {[%emt 0:04:30]} 20. g3 {[%emt 0:01:09]} Be7 {[%emt 0:00:19]} 21. h4 {[%emt 0:00:59]} Nc7 {[%emt 0:05:08]} 22. Kh2 {[%emt 0:00:44]} Rd7 {[%emt 0:02:48]} 23. Bd3 {[%emt 0:02:45]} Rad8 {[%emt 0:00:30]} 24. Bc2 {[%emt 0:02:23]} c4 {[%emt 0:02:12]} 25. Kh3 {[%emt 0:07:10]} f5 {[%emt 0:16:46]} 26. exf6 {[%emt 0:01:32]} gxf6 {[%emt 0:00:05]} 27. b3 {[%emt 0:10:10]} f5 {[%emt 0:00:59]} 28. Ng5 {[%emt 0:00:31]} Rd6 {[%emt 0:05:10]} 29. Rf1 {[%emt 0:05:04]} h6 {[%emt 0:03:26]} 30. Nf3 {[%emt 0:00:21]} cxb3 {[%emt 0:00:25]} 31. Bxb3 {[%emt 0:00:27]} Qxc3 {[%emt 0:02:59]} 32. Bb2 {[%emt 0:01:31]} Qxb3 {[%emt 0:05:41]} 33. Qe5 {[%emt 0:00:03]} Bf8 {[%emt 0:00:49]} 34. Qh8+ {[%emt 0:02:51]} Kf7 {[%emt 0:00:04]} 35. Ne5+ {[%emt 0:01:05]} Ke8 {[%emt 0:00:09]} 36. Qg8 {[%emt 0:00:26]} R8d7 {[%emt 0:01:30]} 37. Qg6+ {[%emt 0:00:35]} Kd8 {[%emt 0:00:12]} 38. Qf6+ {[%emt 0:00:05]} Be7 {[%emt 0:02:01]} 39. Qh8+ {[%emt 0:00:03]} Ne8 {[%emt 0:00:26]} 40. Rac1 {[%emt 0:00:22]} Bf6 {[%emt 0:04:18]} 41. Nc6+ {[%emt 0:02:02]} Bxc6 {[%emt 0:03:39]} 42. Bxf6+ {[%emt 0:00:20]} Kc7 {[%emt 0:00:16]} 43. Qxe8 {[%emt 0:00:28]} Qd5 {[%emt 0:03:07]} 44. Rf2 {[%emt 0:08:13]} Kb7 {[%emt 0:00:53]} 45. Be5 {[%emt 0:02:14]} Rd8 {[%emt 0:01:57]} 46. Qg6 {[%emt 0:00:12]} R6d7 {[%emt 0:00:21]} 47. a5 {[%emt 0:00:35]} bxa5 {[%emt 0:01:43]} 48. Qxh6 {[%emt 0:05:23]} Rg8 {[%emt 0:01:17]} 49. Qh5 {[%emt 0:00:28]} Qd3 {[%emt 0:02:40]} 50. Rg1 {[%emt 0:00:34]} a4 {[%emt 0:02:23]} 51. Qe2 {[%emt 0:01:44]} a3 {[%emt 0:00:11]} 52. Qxd3 {[%emt 0:01:29]} Rxd3 {[%emt 0:00:04]} 53. h5 {[%emt 0:00:13]} Rd7 {[%emt 0:01:08]} 54. g4 {[%emt 0:05:48]} Rh7 {[%emt 0:00:43]} 55. Kh4 {[%emt 0:02:06]} Be8 {[%emt 0:00:15]} 56. Rb1+ {[%emt 0:00:36]} Ka7 {[%emt 0:01:53]} 57. g5 {[%emt 0:00:14]} Bxh5 {[%emt 0:08:14]} 58. Kg3 {[%emt 0:00:28]} Rd8 {[%emt 0:00:47]} 59. Rb3 {[%emt 0:02:18]} Rd1 {[%emt 0:04:12]} 60. Rc2 {[%emt 0:03:19]} Bg4 {[%emt 0:03:33]} 61. Kg2 {[%emt 0:00:33]} Bh5 {[%emt 0:12:54]} 62. Bb8+ {[%emt 0:06:17]} Ka8 {[%emt 0:00:04]} 63. Rc8 {[%emt 0:00:17]} Bf3+ {[%emt 0:01:27]} 64. Kxf3 {[%emt 0:00:13]} Rh3+ {[%emt 0:00:08]} 65. Ke2 {[%emt 0:00:04]} Rxb3 {[%emt 0:00:27]} 66. Be5+ {[%emt 0:00:04]} 1-0

[Event "Fagernes GM-A 2019"]
[Site "Fagernes"]
[Date "2019.04.18"]
[Round "6.4"]
[White "Hauge, Lars Oskar"]
[Black "Postny, Evgeny"]
[Result "1-0"]
[ECO "D02"]
[WhiteElo "2472"]
[BlackElo "2612"]
[Annotator "ChessBase"]
[PlyCount "101"]
[EventDate "2019.04.14"]
[EventType "tourn"]
[EventCountry "NOR"]
[SourceTitle "playchess.com"]
[Source "ChessBase"]
[SourceQuality "1"]
[TimeControl "40/7200:3600"]

1. d4 {[%emt 0:03:10]} d5 {[%emt 0:00:07]} 2. Nf3 {[%emt 0:00:24]} Nf6 {[%emt 0:00:07]} 3. Bf4 {[%emt 0:00:05]} Bf5 {[%emt 0:00:46]} 4. e3 {[%emt 0:00:33]} e6 {[%emt 0:00:12]} 5. c4 {[%emt 0:02:25]} Bxb1 {[%emt 0:01:51]} 6. Qxb1 {[%emt 0:00:13]} Bb4+ {[%emt 0:00:06]} 7. Kd1 {[%emt 0:00:04]} Bd6 {[%emt 0:01:45]} 8. Bxd6 {[%emt 0:04:21]} Qxd6 {[%emt 0:01:27]} 9. Qc2 {[%emt 0:05:17]} Nbd7 {[%emt 0:07:27]} 10. cxd5 {[%emt 0:04:10]} Nxd5 {[%emt 0:05:05]} 11. Rc1 {[%emt 0:06:07]} c5 {[%emt 0:15:02]} 12. Bb5 {[%emt 0:04:55]} cxd4 {[%emt 0:12:52]} 13. Nxd4 {[%emt 0:04:17]} O-O {[%emt 0:00:18]} 14. Ke2 {[%emt 0:03:53]} N7f6 {[%emt 0:02:35]} 15. Nf3 {[%emt 0:01:01]} Qb4 {[%emt 0:16:40]} 16. Bd3 {[%emt 0:06:22]} Rad8 {[%emt 0:06:39]} 17. Rhd1 {[%emt 0:01:38]} Rd6 {[%emt 0:00:20]} 18. a3 {[%emt 0:06:10]} Qb6 {[%emt 0:03:53]} 19. Ne5 {[%emt 0:02:05]} Qd8 {[%emt 0:04:47]} 20. Qa4 {[%emt 0:09:33]} Qb8 {[%emt 0:00:52]} 21. Nf3 {[%emt 0:01:24]} Rfd8 {[%emt 0:00:27]} 22. Qh4 {[%emt 0:00:47]} Rb6 {[%emt 0:03:30]} 23. Rd2 {[%emt 0:01:19]} h6 {[%emt 0:01:58]} 24. Qg3 {[%emt 0:08:24]} Qxg3 {[%emt 0:01:48]} 25. hxg3 {[%emt 0:00:17]} Kf8 {[%emt 0:00:46]} 26. Rdc2 {[%emt 0:00:50]} Ne7 {[%emt 0:06:37]} 27. Ne5 {[%emt 0:06:49]} Rbd6 {[%emt 0:02:22]} 28. Rc7 {[%emt 0:07:26]} Rb8 {[%emt 0:06:06]} 29. e4 {[%emt 0:03:46]} a6 {[%emt 0:04:51]} 30. b4 {[%emt 0:00:29]} Rdd8 {[%emt 0:00:34]} 31. R1c2 {[%emt 0:05:29]} Rdc8 {[%emt 0:00:19]} 32. f3 {[%emt 0:01:10]} Ke8 {[%emt 0:02:50]} 33. a4 {[%emt 0:02:13]} Rxc7 {[%emt 0:00:53]} 34. Rxc7 {[%emt 0:00:09]} Kd8 {[%emt 0:00:04]} 35. Rc2 {[%emt 0:00:07]} Ke8 {[%emt 0:00:05]} 36. b5 {[%emt 0:00:12]} a5 {[%emt 0:01:47]} 37. Rc7 {[%emt 0:01:32]} Nc8 {[%emt 0:01:48]} 38. Rxf7 {[%emt 0:04:02]} Nb6 {[%emt 0:00:01]} 39. Rxg7 {[%emt 0:00:28]} Nxa4 {[%emt 0:00:02]} 40. Rg6 {[%emt 0:00:24]} Ke7 {[%emt 0:00:15]} 41. Rxf6 {[%emt 1:01:41]} Kxf6 {[%emt 1:00:05]} 42. Nd7+ {[%emt 0:00:03]} Ke7 {[%emt 0:00:00]} 43. Nxb8 {[%emt 0:00:00]} Kd6 {[%emt 0:00:00]} 44. Bc4 {[%emt 0:00:00]} Nc5 {[%emt 0:00:00]} 45. Ke3 {[%emt 0:00:00]} a4 {[%emt 0:00:00]} 46. Na6 {[%emt 0:00:00]} bxa6 {[%emt 0:00:00]} 47. bxa6 {[%emt 0:00:00]} Nd7 {[%emt 0:00:00]} 48. f4 {[%emt 0:00:00]} e5 {[%emt 0:00:00]} 49. a7 {[%emt 0:00:00]} Nb6 {[%emt 0:00:00]} 50. Bd5 {[%emt 0:00:00]} a3 {[%emt 0:00:00]} 51. Kd3 {[%emt 0:00:00]} 1-0

[Event "Fagernes GM-A 2019"]
[Site "Fagernes"]
[Date "2019.04.18"]
[Round "6.5"]
[White "Turov, Maxim"]
[Black "Romanov, Evgeny"]
[Result "1/2-1/2"]
[ECO "A33"]
[WhiteElo "2584"]
[BlackElo "2576"]
[Annotator "ChessBase"]
[PlyCount "25"]
[EventDate "2019.04.14"]
[EventType "tourn"]
[EventCountry "NOR"]
[SourceTitle "playchess.com"]
[Source "ChessBase"]
[SourceQuality "1"]
[TimeControl "40/7200:3600"]

1. d4 {[%emt 0:00:05]} Nf6 {[%emt 0:01:03]} 2. c4 {[%emt 0:00:05]} e6 {[%emt 0:00:14]} 3. g3 {[%emt 0:00:07]} c5 {[%emt 0:07:44]} 4. Nf3 {[%emt 0:00:23]} cxd4 {[%emt 0:03:42]} 5. Nxd4 {[%emt 0:04:31]} a6 {[%emt 0:00:22]} 6. Bg2 {[%emt 0:02:47]} Qc7 {[%emt 0:00:27]} 7. Nc3 {[%emt 0:01:52]} d6 {[%emt 0:04:11]} 8. O-O {[%emt 0:04:42]} Be7 {[%emt 0:00:58]} 9. b3 {[%emt 0:04:38]} Bd7 {[%emt 0:11:54]} 10. Bb2 {[%emt 0:11:10]} Nc6 {[%emt 0:00:19]} 11. Rc1 {[%emt 0:00:08]} Nxd4 {[%emt 0:01:25]} 12. Qxd4 {[%emt 0:00:08]} O-O {[%emt 0:01:20]} 13. Rfd1 {[%emt 0:04:58]} 1/2-1/2

[Event "Fagernes GM-A 2019"]
[Site "Fagernes"]
[Date "2019.04.18"]
[Round "6.6"]
[White "Blomqvist, Erik"]
[Black "Vestby-Ellingsen, Mads"]
[Result "1/2-1/2"]
[ECO "B22"]
[WhiteElo "2496"]
[BlackElo "2333"]
[Annotator "ChessBase"]
[PlyCount "76"]
[EventDate "2019.04.14"]
[EventType "tourn"]
[EventCountry "NOR"]
[SourceTitle "playchess.com"]
[Source "ChessBase"]
[SourceQuality "1"]
[TimeControl "40/7200:3600"]

1. Nf3 {[%emt 0:00:10]} c5 {[%emt 0:00:14]} 2. e4 {[%emt 0:00:17]} e6 {[%emt 0:00:15]} 3. c3 {[%emt 0:00:16]} Nf6 {[%emt 0:00:17]} 4. e5 {[%emt 0:00:12]} Nd5 {[%emt 0:00:08]} 5. Bc4 {[%emt 0:00:05]} d6 {[%emt 0:00:14]} 6. d4 {[%emt 0:00:08]} cxd4 {[%emt 0:00:10]} 7. cxd4 {[%emt 0:00:06]} Be7 {[%emt 0:00:15]} 8. O-O {[%emt 0:00:17]} O-O {[%emt 0:00:12]} 9. Re1 {[%emt 0:00:25]} b6 {[%emt 0:06:21]} 10. Bxd5 {[%emt 0:00:40]} exd5 {[%emt 0:00:12]} 11. Nc3 {[%emt 0:00:14]} dxe5 {[%emt 0:07:33]} 12. Nxe5 {[%emt 0:08:01]} Bb7 {[%emt 0:02:27]} 13. Qg4 {[%emt 0:26:41]} Nc6 {[%emt 0:14:32]} 14. Bh6 {[%emt 0:15:55]} Bf6 {[%emt 0:00:47]} 15. Rad1 {[%emt 0:00:42]} Bc8 {[%emt 0:09:31]} 16. Qf3 {[%emt 0:22:30]} Ne7 {[%emt 0:08:30]} 17. Bf4 {[%emt 0:00:17]} Be6 {[%emt 0:02:19]} 18. h3 {[%emt 0:06:04]} Rc8 {[%emt 0:13:33]} 19. Ng4 {[%emt 0:04:49]} Ng6 {[%emt 0:03:07]} 20. Bg3 {[%emt 0:07:55]} Be7 {[%emt 0:04:05]} 21. Ne5 {[%emt 0:02:17]} a6 {[%emt 0:02:15]} 22. Nxg6 {[%emt 0:00:25]} hxg6 {[%emt 0:00:17]} 23. Rc1 {[%emt 0:02:09]} Qd7 {[%emt 0:02:43]} 24. Ne2 {[%emt 0:01:08]} g5 {[%emt 0:01:37]} 25. Rxc8 {[%emt 0:01:32]} Rxc8 {[%emt 0:00:14]} 26. Rc1 {[%emt 0:00:18]} b5 {[%emt 0:08:40]} 27. Rxc8+ {[%emt 0:02:51]} Qxc8 {[%emt 0:00:10]} 28. Qc3 {[%emt 0:01:27]} b4 {[%emt 0:03:38]} 29. Qxc8+ {[%emt 0:00:41]} Bxc8 {[%emt 0:00:08]} 30. Bc7 {[%emt 0:00:51]} Bf5 {[%emt 0:01:27]} 31. f3 {[%emt 0:01:22]} Kf8 {[%emt 0:02:37]} 32. Kf2 {[%emt 0:01:08]} Ke8 {[%emt 0:00:26]} 33. Ke3 {[%emt 0:00:59]} Kd7 {[%emt 0:00:26]} 34. Be5 {[%emt 0:00:27]} f6 {[%emt 0:00:15]} 35. Bb8 {[%emt 0:00:26]} Kc6 {[%emt 0:00:51]} 36. Kd2 {[%emt 0:00:11]} Kb5 {[%emt 0:01:24]} 37. Bh2 {[%emt 0:02:11]} Ka4 {[%emt 0:05:36]} 38. Bc7 {[%emt 0:00:35]} Kb5 {[%emt 0:05:46]} 1/2-1/2

[Event "Fagernes GM-A 2019"]
[Site "Fagernes"]
[Date "2019.04.18"]
[Round "6.7"]
[White "Sisatto, Olli"]
[Black "Notkevich, Benjamin Arvola"]
[Result "1-0"]
[ECO "D38"]
[WhiteElo "2276"]
[BlackElo "2495"]
[Annotator "ChessBase"]
[PlyCount "69"]
[EventDate "2019.04.14"]
[EventType "tourn"]
[EventCountry "NOR"]
[SourceTitle "playchess.com"]
[Source "ChessBase"]
[SourceQuality "1"]
[TimeControl "40/7200:3600"]

1. d4 {[%emt 0:00:09]} Nf6 {[%emt 0:00:27]} 2. c4 {[%emt 0:00:16]} e6 {[%emt 0:00:03]} 3. Nc3 {[%emt 0:00:56]} Bb4 {[%emt 0:00:05]} 4. Nf3 {[%emt 0:00:16]} O-O {[%emt 0:00:12]} 5. Bg5 {[%emt 0:00:43]} d5 {[%emt 0:00:43]} 6. e3 {[%emt 0:00:34]} h6 {[%emt 0:00:20]} 7. Bh4 {[%emt 0:00:18]} Nbd7 {[%emt 0:00:40]} 8. a3 {[%emt 0:04:01]} Bxc3+ {[%emt 0:00:37]} 9. bxc3 {[%emt 0:00:13]} c5 {[%emt 0:00:25]} 10. cxd5 {[%emt 0:07:41]} exd5 {[%emt 0:02:19]} 11. Bd3 {[%emt 0:05:50]} Qa5 {[%emt 0:00:07]} 12. Qc2 {[%emt 0:05:42]} b6 {[%emt 0:07:15]} 13. O-O {[%emt 0:02:58]} Ba6 {[%emt 0:00:58]} 14. Bxa6 {[%emt 0:06:50]} Qxa6 {[%emt 0:00:05]} 15. Bxf6 {[%emt 0:00:32]} Nxf6 {[%emt 0:00:01]} 16. dxc5 {[%emt 0:00:25]} Rfc8 {[%emt 0:05:25]} 17. cxb6 {[%emt 0:01:14]} axb6 {[%emt 0:00:11]} 18. Qb3 {[%emt 0:01:23]} Qa5 {[%emt 0:00:42]} 19. Rfc1 {[%emt 0:03:43]} Rc5 {[%emt 0:40:59]} 20. Nd2 {[%emt 0:41:26]} Rac8 {[%emt 0:10:18]} 21. Qb2 {[%emt 0:03:08]} Rxc3 {[%emt 0:07:50]} 22. Nb3 {[%emt 0:01:29]} Rxc1+ {[%emt 0:00:03]} 23. Rxc1 {[%emt 0:00:19]} Rxc1+ {[%emt 0:00:03]} 24. Qxc1 {[%emt 0:00:16]} Qa4 {[%emt 0:00:06]} 25. Nd4 {[%emt 0:05:27]} Qa5 {[%emt 0:22:41]} 26. f3 {[%emt 0:08:00]} Nd7 {[%emt 0:05:20]} 27. Nc6 {[%emt 0:01:21]} Qb5 {[%emt 0:01:47]} 28. Nb4 {[%emt 0:03:43]} Kf8 {[%emt 0:03:55]} 29. Qc7 {[%emt 0:02:13]} Ke7 {[%emt 0:01:06]} 30. Nc6+ {[%emt 0:00:29]} Kf6 {[%emt 0:00:04]} 31. Qd6+ {[%emt 0:03:06]} Kg5 {[%emt 0:00:08]} 32. h4+ {[%emt 0:01:41]} Kh5 {[%emt 0:00:21]} 33. g4+ {[%emt 0:00:12]} Kxh4 {[%emt 0:00:06]} 34. Qh2+ {[%emt 0:00:11]} Kg5 {[%emt 0:00:06]} 35. Qh5+ {[%emt 0:00:06]} 1-0

[Event "Fagernes GM-A 2019"]
[Site "Fagernes"]
[Date "2019.04.18"]
[Round "6.8"]
[White "Nielsen, Andre"]
[Black "Santarius, Erik"]
[Result "1-0"]
[ECO "B96"]
[WhiteElo "2201"]
[BlackElo "2411"]
[Annotator "NA"]
[PlyCount "81"]
[EventDate "2019.04.14"]
[EventType "tourn"]
[EventCountry "NOR"]
[SourceTitle "playchess.com"]
[Source "ChessBase"]
[SourceQuality "1"]
[TimeControl "40/7200:3600"]

1. e4 {[%emt 0:00:06]} c5 {[%emt 0:00:07]} 2. Nf3 {[%emt 0:00:42]} d6 {[%emt 0:00:13]} 3. d4 {[%emt 0:00:12]} cxd4 {[%emt 0:00:13]} 4. Nxd4 {[%emt 0:00:13]} Nf6 {[%emt 0:00:23]} 5. Nc3 {[%emt 0:00:15]} a6 {[%emt 0:00:26]} 6. Bg5 {[%emt 0:02:19]} e6 {[%emt 0:00:14]} 7. f4 {[%emt 0:00:37]} Nbd7 {[%emt 0:01:39]} 8. Qf3 {[%emt 0:06:25]} h6 {[%emt 0:07:16]} 9. Bh4 {[%emt 0:01:09]} Rg8 {[%emt 0:03:30]} 10. f5 {[%emt 0:22:23]} Ne5 {[%emt 0:02:06]} 11. Qh3 {[%emt 0:05:17]} g5 {[%emt 0:08:15]} 12. fxg6 {[%emt 0:06:44]} Rxg6 {[%emt 0:02:00]} 13. O-O-O {[%emt 0:03:22]} Be7 {[%emt 0:10:24]} 14. Be2 {[%emt 0:01:55]} b5 {[%emt 0:04:34]} 15. a3 {[%emt 0:12:13]} Bb7 {[%emt 0:03:31]} 16. Nf3 {[%emt 0:12:28]} Nfg4 {[%emt 0:04:19]} 17. Nxe5 {[%emt 0:01:59]} Nxe5 {[%emt 0:00:22]} 18. Bg3 {[%emt 0:01:32]} Qa5 {[%emt 0:08:56]} 19. Kb1 {[%emt 0:04:36]} b4 {[%emt 0:02:00]} 20. axb4 {[%emt 0:01:22]} Qxb4 {[%emt 0:00:33]} 21. Bxe5 {[%emt 0:02:27]} dxe5 {[%emt 0:00:34]} 22. Bh5 {[%emt 0:00:44]} Rf6 {[%emt 0:01:14]} 23. Rhf1 {[%emt 0:01:08]} Rxf1 {[%emt 0:16:57]} 24. Rxf1 {[%emt 0:00:29]} O-O-O {[%emt 0:00:11]} 25. Bxf7 {[%emt 0:01:19]} Kb8 {[%emt 0:00:42]} 26. Qxe6 {[%emt 0:02:14]} Bc5 {[%emt 0:00:36]} 27. Qxe5+ {[%emt 0:03:15]} Ka7 {[%emt 0:04:18]} 28. Bd5 {[%emt 0:03:31]} Rd7 {[%emt 0:00:09]} 29. Rf7 {[%emt 0:09:31]} Rxf7 {[%emt 0:02:01]} 30. Bxf7 {[%emt 0:00:07]} Bd6 {[%emt 0:00:03]} 31. Qg7 {[%emt 0:01:13]} Bf8 {[%emt 0:00:14]} 32. Qh7 {[%emt 0:01:08]} Qe7 {[%emt 0:02:11]} 33. Qf5 {[%emt 0:00:41]} Bc6 {[%emt 0:01:03]} 34. Bd5 {[%emt 0:01:10]} Bd7 {[%emt 0:00:30]} 35. Qf2+ {[%emt 0:00:36]} Qc5 {[%emt 0:00:06]} 36. Qxc5+ {[%emt 0:00:27]} Bxc5 {[%emt 0:00:06]} 37. e5 {[%emt 0:00:23]} Bg1 {[%emt 0:00:57]} 38. e6 {[%emt 0:00:28]} Be8 {[%emt 0:00:42]} 39. Ne4 {[%emt 0:00:54]} Kb6 {[%emt 0:00:20]} 40. Nf6 {[%emt 0:00:44]} Bg6 {[%emt 0:00:36]} 41. e7 {[%emt 1:00:46]} 1-0

[Event "Fagernes GM-A 2019"]
[Site "Fagernes"]
[Date "2019.04.18"]
[Round "6.9"]
[White "Gullaksen, Eirik"]
[Black "Efroimski, Marsel"]
[Result "1/2-1/2"]
[ECO "D37"]
[WhiteElo "2324"]
[BlackElo "2287"]
[Annotator "NA"]
[PlyCount "61"]
[EventDate "2019.04.14"]
[EventType "tourn"]
[EventCountry "NOR"]
[SourceTitle "playchess.com"]
[Source "ChessBase"]
[SourceQuality "1"]
[TimeControl "40/7200:3600"]

1. d4 {[%emt 0:00:08]} Nf6 {[%emt 0:01:01]} 2. c4 {[%emt 0:00:15]} e6 {[%emt 0:00:06]} 3. Nf3 {[%emt 0:00:17]} d5 {[%emt 0:00:05]} 4. Nc3 {[%emt 0:00:26]} a6 {[%emt 0:00:25]} 5. cxd5 {[%emt 0:00:34]} exd5 {[%emt 0:00:09]} 6. Bg5 {[%emt 0:00:30]} Be6 {[%emt 0:01:42]} 7. e3 {[%emt 0:01:32]} Nbd7 {[%emt 0:10:20]} 8. Be2 {[%emt 0:02:06]} Bd6 {[%emt 0:03:39]} 9. O-O {[%emt 0:03:40]} O-O {[%emt 0:02:17]} 10. Rc1 {[%emt 0:05:02]} Rc8 {[%emt 0:18:21]} 11. a3 {[%emt 0:10:05]} Qe7 {[%emt 0:05:36]} 12. Re1 {[%emt 0:04:18]} Rfe8 {[%emt 0:16:40]} 13. e4 {[%emt 0:06:03]} dxe4 {[%emt 0:01:57]} 14. Nxe4 {[%emt 0:00:44]} Bd5 {[%emt 0:08:04]} 15. Bd3 {[%emt 0:07:32]} Qf8 {[%emt 0:03:57]} 16. Bxf6 {[%emt 0:04:33]} Nxf6 {[%emt 0:03:02]} 17. Nxf6+ {[%emt 0:00:54]} gxf6 {[%emt 0:00:04]} 18. Nh4 {[%emt 0:03:51]} Rxe1+ {[%emt 0:05:19]} 19. Qxe1 {[%emt 0:02:58]} Re8 {[%emt 0:06:16]} 20. Qd2 {[%emt 0:01:01]} Qg7 {[%emt 0:01:01]} 21. g3 {[%emt 0:13:01]} Qg5 {[%emt 0:04:23]} 22. Qxg5+ {[%emt 0:03:13]} fxg5 {[%emt 0:00:01]} 23. Nf5 {[%emt 0:00:13]} Bf8 {[%emt 0:05:17]} 24. Ne3 {[%emt 0:11:46]} c6 {[%emt 0:02:08]} 25. Nxd5 {[%emt 0:07:28]} cxd5 {[%emt 0:00:01]} 26. Kf1 {[%emt 0:00:18]} Bg7 {[%emt 0:05:09]} 27. Rc7 {[%emt 0:00:16]} Rb8 {[%emt 0:02:05]} 28. Rd7 {[%emt 0:02:33]} Bxd4 {[%emt 0:00:04]} 29. Rxd5 {[%emt 0:00:07]} Bf6 {[%emt 0:01:35]} 30. b3 {[%emt 0:03:57]} Rd8 {[%emt 0:00:16]} 31. Rxd8+ {[%emt 0:20:39]} 1/2-1/2

[Event "Fagernes GM-A 2019"]
[Site "Fagernes"]
[Date "2019.04.18"]
[Round "6.10"]
[White "Royset, Pal"]
[Black "Hobber, Anders"]
[Result "1-0"]
[ECO "B01"]
[WhiteElo "2167"]
[BlackElo "2295"]
[Annotator "NA"]
[PlyCount "141"]
[EventDate "2019.04.14"]
[EventType "tourn"]
[EventCountry "NOR"]
[SourceTitle "playchess.com"]
[Source "ChessBase"]
[SourceQuality "1"]
[TimeControl "40/7200:3600"]

1. e4 {[%emt 0:02:46]} d5 {[%emt 0:04:20]} 2. exd5 {[%emt 0:00:32]} Qxd5 {[%emt 0:00:07]} 3. Nc3 {[%emt 0:01:37]} Qd6 {[%emt 0:00:40]} 4. d4 {[%emt 0:00:44]} Nf6 {[%emt 0:00:11]} 5. Nf3 {[%emt 0:00:56]} c6 {[%emt 0:00:15]} 6. Ne5 {[%emt 0:05:57]} Be6 {[%emt 0:00:26] B01: Scandinavian Defence} 7. Be2 {[%emt 0:06:09]} g6 {[%emt 0:10:22]} 8. O-O {[%emt 0:05:36]} Bg7 {[%emt 0:01:29]} 9. Bf4 {[%emt 0:03:53]} Qd8 {[%emt 0:01:12]} 10. Bg3 $146 {[%emt 0:07:41]} ({Predecessor:} 10. Qd2 O-O 11. Rad1 Nbd7 12. Nf3 Nb6 13. Bh6 Qd6 14. Bxg7 Kxg7 {½-½ (53) Perunovic,M (2693)-Milanovic,D (2594) Belgrade 2015}) 10... O-O {[%emt 0:00:32]} 11. Bf3 {[%emt 0:02:54]} Na6 {[%emt 0:08:23]} 12. Re1 {[%emt 0:04:23]} Nc7 {[%emt 0:09:39]} 13. Qd2 {[%emt 0:07:04]} Ncd5 {[%emt 0:02:29]} 14. Na4 {[%emt 0:00:55]} Nd7 {[%emt 0:28:16]} 15. Nxd7 {[%emt 0:08:17]} Bxd7 {[%emt 0:00:08]} 16. b3 {[%emt 0:02:53]} Bf5 {[%emt 0:05:09]} 17. Rad1 {[%emt 0:09:59]} Rc8 {[%emt 0:05:03]} 18. c4 {[%emt 0:02:00]} Nf6 {[%emt 0:00:43]} 19. Qb4 {[%emt 0:01:57]} b5 {[%emt 0:06:32]} 20. cxb5 {[%emt 0:02:15]} cxb5 {[%emt 0:02:15]} 21. Qxb5 {[%emt 0:00:26]} Rc2 {[%emt 0:00:24]} 22. Re2 {[%emt 0:05:35]} Rxe2 {[%emt 0:02:22]} 23. Qxe2 {[%emt 0:00:29]} Nd5 {[%emt 0:02:40]} 24. Qc4 {[%emt 0:07:03]} e6 {[%emt 0:01:24]} 25. Be5 {[%emt 0:04:19]} Bh6 {[%emt 0:05:46]} 26. Nc5 {[%emt 0:02:41]} Nb6 {[%emt 0:04:44]} 27. Qe2 {[%emt 0:01:01]} Nd5 {[%emt 0:01:09]} 28. Qe1 {[%emt 0:03:29]} Bc2 {[%emt 0:03:02]} 29. Rc1 {[%emt 0:01:07]} Bf5 {[%emt 0:02:39]} 30. Rc4 {[%emt 0:00:20]} Nb6 {[%emt 0:00:26]} 31. Nb7 {[%emt 0:00:45]} Qg5 {[%emt 0:02:02]} 32. Rc7 {[%emt 0:02:52]} Nd5 {[%emt 0:00:04]} 33. Bxd5 {[%emt 0:03:49]} exd5 {[%emt 0:00:01]} 34. Nd6 {[%emt 0:00:20]} Bh3 {[%emt 0:03:02]} 35. Bg3 {[%emt 0:00:07]} Be6 {[%emt 0:00:01]} 36. Rxa7 {[%emt 0:01:12]} Qd8 {[%emt 0:00:28]} 37. Qb4 {[%emt 0:01:15]} Qg5 {[%emt 0:00:23]} 38. Qc3 {[%emt 0:00:58]} Qg4 {[%emt 0:00:29]} 39. Qd3 {[%emt 0:01:15]} Rd8 {[%emt 0:00:26]} 40. h3 {[%emt 0:00:21]} Qg5 {[%emt 0:00:12]} 41. Qf3 {[%emt 0:04:07]} Rf8 {[%emt 0:01:28]} 42. a4 {[%emt 0:04:16]} Qd2 {[%emt 0:05:06]} 43. Nb5 {[%emt 0:00:26]} Bg7 {[%emt 0:02:32]} 44. Qe3 {[%emt 0:02:35]} Qd1+ {[%emt 0:02:28]} 45. Kh2 {[%emt 0:00:05]} Rc8 {[%emt 0:15:04]} 46. Rc7 {[%emt 0:02:36]} Rxc7 {[%emt 0:01:34]} 47. Bxc7 {[%emt 0:01:15]} Qc2 {[%emt 0:00:31]} 48. Be5 {[%emt 0:00:58]} Bf8 {[%emt 0:00:51]} 49. Nc7 {[%emt 0:01:36]} Qc6 {[%emt 0:01:45]} 50. Qf4 {[%emt 0:02:09]} Bf5 {[%emt 0:01:47]} 51. Qf3 {[%emt 0:02:47]} Be4 {[%emt 0:03:03]} 52. Qe3 {[%emt 0:00:11]} f6 {[%emt 0:02:19]} 53. Bg3 {[%emt 0:00:32]} Bb4 {[%emt 0:02:44]} 54. Nb5 {[%emt 0:02:07]} g5 $18 {[%emt 0:03:53]} 55. h4 {[%emt 0:01:58]} h6 {[%emt 0:00:24]} 56. f3 {[%emt 0:01:13]} Bc2 {[%emt 0:00:46]} 57. Qc1 {[%emt 0:00:27]} Kf7 {[%emt 0:02:26]} 58. Kh1 {[%emt 0:00:44]} Kg6 {[%emt 0:01:11]} 59. hxg5 {[%emt 0:03:42]} hxg5 {[%emt 0:00:02]} 60. Nc7 {[%emt 0:00:17]} g4 {[%emt 0:02:28]} 61. Nxd5 {[%emt 0:03:51]} Ba3 {[%emt 0:00:08]} 62. Nf4+ {[%emt 0:03:01]} Kf7 {[%emt 0:00:01]} 63. Qxa3 {[%emt 0:00:30]} gxf3 {[%emt 0:00:02]} 64. Qc5 {[%emt 0:01:35]} Qe4 {[%emt 0:00:40]} 65. Qh5+ {[%emt 0:01:08]} Ke7 {[%emt 0:00:36]} 66. Qxf3 {[%emt 0:02:05]} Qxd4 {[%emt 0:00:04]} 67. Qb7+ {[%emt 0:01:06]} Qd7 {[%emt 0:00:12]} 68. Nd5+ {[%emt 0:00:11]} Ke6 {[%emt 0:00:16]} 69. Qxd7+ {[%emt 0:00:15]} Kxd7 {[%emt 0:00:05]} 70. b4 {[%emt 0:00:59]} Kc6 {[%emt 0:00:22]} 71. Nc3 {[%emt 0:00:11] Kd5 [%clk 0:00:00]} 1-0